Cogmind - Beta 12 *** ADVENTURER MODE // 2023.04.30 @ 15:07:08 Player: zxpr0jk Result: Self-destructed Performance ------------- Evolutions (2) 1000 Regions Visited (3) 600 Robots Destroyed (59) 295 Value Destroyed (1641) 1641 Prototype IDs (11) 220 Alien Tech Used (0) 0 Bonus (16) 16 TOTAL SCORE: 3772 Bonus ------- High Alert Combat Kills 16 Cogmind --------- Core Integrity 460/550 Matter 288/300 Energy 240/240 System Corruption 0% Temperature Warning (399) Movement Walking (190) Ox1 Location -8/Materials Parts ------- > --- POWER (2) -------- Nuclear Core > --- PROPULSION (3) --- Carbon-fiber Leg > --- UTILITY (4) ------ Medium Storage Unit Signal Interpreter Hacking Suite > --- WEAPON (2) ------- (None) > --- INVENTORY (10) --- Improved Heat Sink Salvage Targeting Computer Advanced Beam Cannon Improved Assault Rifle Improved Assault Rifle Peak State ------------ > --- POWER ------------ Improved Ion Engine Nuclear Core > --- PROPULSION ------- Improved Aluminum Leg Carbon-fiber Leg Carbon-fiber Leg > --- UTILITY ---------- Medium Storage Unit Sensor Array Signal Interpreter Hacking Suite > --- WEAPON ----------- Improved Assault Rifle Improved Assault Rifle > --- INVENTORY -------- Salvage Targeting Computer Advanced Beam Cannon Advanced Beam Cannon Advanced Beam Cannon [Rating: 26] Favorites ----------- Power Improved Ion Engine Engine Improved Ion Engine Power Core Nuclear Core Propulsion Carbon-fiber Leg Leg Carbon-fiber Leg Wheel Wheel Utility Medium Storage Unit Device Sensor Array Storage Medium Storage Unit Processor Signal Interpreter Hackware Hacking Suite Weapon Improved Assault Rifle Energy Gun Medium Laser Energy Cannon Beam Cannon Ballistic Gun Improved Assault Rifle Build | -11 -10 -9 -8 ------- Run | Jun Mat Mat Mat Slots Evolved 4 | . . 2 2 Power 1 | . . . 1 Propulsion 1 | . . 1 . Utility 2 | . . 1 1 Weapon . | . . . . Parts Attached 50 | 7 9 24 10 Power 10 | 2 1 4 3 Engine 8 | 2 1 4 1 Core 2 | . . . 2 Reactor . | . . . . Propulsion 16 | 2 2 10 2 Treads . | . . . . Leg 12 | . . 10 2 Wheel 4 | 2 2 . . Hover . | . . . . Flight . | . . . . Utility 9 | 1 3 3 2 Device 2 | . . . 2 Storage 3 | 1 2 . . Processor 3 | . 1 2 . Hackware 1 | . . 1 . Protection . | . . . . Artifact . | . . . . Weapon 15 | 2 3 7 3 Energy Gun 3 | 1 1 1 . Energy Cannon 3 | . 1 . 2 Ballistic Gun 9 | 1 1 6 1 Ballistic Cannon . | . . . . Launcher . | . . . . Special Weapon . | . . . . Impact Weapon . | . . . . Slashing Weapon . | . . . . Piercing Weapon . | . . . . Special Melee Weapon . | . . . . Unidentified Prototypes . | . . . . Parts Lost 5 | . . 1 4 Power 1 | . . . 1 Propulsion 3 | . . 1 2 Utility 1 | . . . 1 Weapon . | . . . . Highest Loss Streak 4 | . . 1 4 To Critical Strikes . | . . . . Average Slot Usage (%) 96 | . 93 98 93 Engine 11 | . 14 10 8 Leg 21 | . . 29 26 Wheel 8 | . 27 2 . Storage 11 | . 14 11 9 Processor 12 | . 8 15 9 Hackware 5 | . . 6 9 Energy Gun 2 | . 1 3 . Energy Cannon 3 | . 12 . 1 Ballistic Gun 17 | . 14 18 16 Naked Turns . | . . . . Heaviest Build 31 | 13 20 23 31 Greatest Support 45 | 20 26 45 43 Greatest Overweight (x) 1 | . . 1 . Average Overweight (x) . | . . . . Largest Inventory Capacity 10 | 8 10 10 10 Average Capacity 9 | 6 9 10 10 Most Carried 8 | 2 4 8 5 Average Carried 3 | 1 1 3 4 Final Capacity 10 | 8 10 10 10 Final Carried 5 | 2 1 5 5 Class Distribution -------------------- 51% | Mutant 48% | Hacker-Mutant Dominant Class ---------------- Mutant | -10/Materials Hacker-Mutant | -9/Materials Hacker-Mutant | -8/Materials Resources | -11 -10 -9 -8 ----------- Run | Jun Mat Mat Mat Matter Collected 1284 | 256 169 737 122 Remotely . | . . . . Salvage Created 2115 | . 353 1552 210 Parts 140 | . 20 108 12 Haulers Intercepted 2 | . . 1 1 Recyclers Shooed . | . . . . Parts Field Recycled . | . . . . Retrieved Matter . | . . . . Parts Self-Destructed . | . . . . Prevented . | . . . . Kills | -11 -10 -9 -8 ------- Run | Jun Mat Mat Mat Combat Hostiles Destroyed 44 | . 9 32 3 Guns 38 | . 4 32 2 Cannons 6 | . 5 . 1 Classes Destroyed 9 | . 4 5 . Worker 1 | . . 1 . Builder 2 | . 1 1 . Hauler 2 | . . 1 1 Operator 2 | . . 2 . Watcher 8 | . 3 5 . Swarmer 10 | . 3 7 . Grunt 20 | . 6 13 1 Duelist 2 | . . 2 . Sentry 12 | . . 10 2 Best Kill Streak 5 | . 5 5 2 Combat Bots Only 5 | . 3 5 2 Max Kills in Single Turn 2 | . 1 2 1 Gunslinging 1 | . . 1 . Exploded . | . . . . Melee . | . . . . Uniques/NPCs Destroyed . | . . . . Combat | -11 -10 -9 -8 -------- Run | Jun Mat Mat Mat Damage Taken 2106 | . 310 1125 671 Core 370 | . 72 208 90 Absorbed by Shields . | . . . . Regen/Repaired (Parts) 85 | . 29 56 . Core Remaining (%) 73 | 100 71 48 . Volleys Fired 140 | . 28 95 17 Largest 2 | . 2 2 2 Hottest 136 | . 80 73 136 Shots Fired 274 | . 56 189 29 Gun 235 | . 28 189 18 Cannon 39 | . 28 . 11 Launcher . | . . . . Special . | . . . . Kinetic 201 | . 28 155 18 Thermal 73 | . 28 34 11 Explosive . | . . . . Electromagnetic . | . . . . Robot Hit Streak 52 | . 11 52 26 Robot Miss Streak 2 | . 1 2 1 Penetration Max . | . . . . Secondary Targets 4 | . . 4 . Max Gunslinging Chain 1 | . . 1 . Shots Hit Robots 219 | . 40 156 23 Core Hits 88 | . 16 64 8 Critical Kills 1 | . . . 1 Critical Parts Destroyed . | . . . . Critical Strikes 4 | . . 3 1 Burn 2 | . . 2 . Destroy 2 | . . 1 1 Melee Attacks . | . . . . Impact . | . . . . Slashing . | . . . . Piercing . | . . . . Sneak Attacks . | . . . . Combat Hostiles . | . . . . Follow-up Attacks . | . . . . Damage Inflicted 3265 | . 606 2272 387 Guns 2695 | . 258 2234 203 Cannons 517 | . 333 . 184 Explosions . | . . . . Melee . | . . . . Ramming 53 | . 15 38 . Kinetic 2329 | . 258 1868 203 Thermal 883 | . 333 366 184 Explosive . | . . . . Electromagnetic . | . . . . Impact . | . . . . Slashing . | . . . . Piercing . | . . . . Highest Corruption . | . . . . Average Corruption . | . . . . Corruption Purged . | . . . . Corruption Blocked . | . . . . Overload Shots . | . . . . Overflow Damage 14 | . 14 . . Projectiles 14 | . 14 . . Explosions . | . . . . Melee . | . . . . Knockbacks . | . . . . Impact . | . . . . Kinetic . | . . . . Secondary . | . . . . Self-Inflicted Damage 7 | . 7 . . Shots . | . . . . Rammed 2 | . 2 . . Targets Rammed 8 | . 2 6 . Kicked 6 | . . 6 . Crushed . | . . . . Highest Temperature 390 | . 233 60 390 Average Temperature 60 | . 81 15 202 Received Heat Transfer 921 | . 171 453 297 Effects 1 | . . . 1 Shutdowns 1 | . . . 1 Siege Activations . | . . . . Robots Corrupted . | . . . . Combat Hostiles . | . . . . Parts Fried 3 | . 3 . . Impact Corruptions . | . . . . Robots Melted . | . . . . Combat Hostiles . | . . . . Parts Melted 4 | . 2 2 . Heat Transferred 2257 | . 703 1221 333 Parts Sabotaged . | . . . . Parts Stolen . | . . . . Parts Stripped . | . . . . Power Chain Reactions . | . . . . Missiles Intercepted . | . . . . Alert | -11 -10 -9 -8 ------- Run | Jun Mat Mat Mat Peak Influence 435 | . 183 435 148 Initial 18 | . . . 18 Average 161 | . 75 207 90 Maximum Alert Level 2 | . . 2 . Low Security (%) 60 | 100 100 39 100 Level 1 36 | . . 56 . Level 2 2 | . . 4 . Level 3 . | . . . . Level 4 . | . . . . Level 5 . | . . . . High Security . | . . . . Max Security . | . . . . Squads Dispatched 4 | . . 2 2 Investigation 2 | . . 1 1 Extermination . | . . . . Reinforcement 2 | . . 1 1 Assault . | . . . . Garrison . | . . . . Intercept . | . . . . Searches Triggered . | . . . . Construction Impeded . | . . . . Haulers Reinforced . | . . . . Active Scanning Responses . | . . . . Cargo Convoy Interrupts . | . . . . Stealth | -11 -10 -9 -8 --------- Run | Jun Mat Mat Mat Distress Signals 4 | . 1 2 1 Communications Jammed . | . . . . Distress Signals . | . . . . Times Spotted 69 | . 14 47 8 Peak Tracking Total 6 | . 4 5 6 Tactical Retreats 3 | . . 3 . Traps | -11 -10 -9 -8 ------- Run | Jun Mat Mat Mat Traps Triggered 1 | . . 1 . Indirectly . | . . . . Trap Hack Attempts . | . . . . Triggered . | . . . . Disarmed . | . . . . Reprogrammed 6 | . 6 . . Reused 1 | . 1 . . Traps Extracted . | . . . . Installed . | . . . . Triggered 1 | . 1 . . Machines | -11 -10 -9 -8 ---------- Run | Jun Mat Mat Mat Machines Disabled . | . . . . Max in Single Turn . | . . . . Machines Repaired . | . . . . Machines Sabotaged . | . . . . Overloaded Fab Kills . | . . . . Hacking | -11 -10 -9 -8 --------- Run | Jun Mat Mat Mat Machines Accessed 26 | . 9 15 2 Terminals 20 | . 8 11 1 Fabricators . | . . . . Repair Stations 2 | . 1 1 . Recycling Units 1 | . . 1 . Scanalyzers 3 | . . 2 1 Garrison Access . | . . . . Total Hacks 98 | . 26 54 18 Successful 84 | . 19 48 17 Failed 14 | . 7 6 1 Catastrophic . | . . . . Database Lockouts . | . . . . Manual 34 | . 12 19 3 Terminals 69 | . 24 43 2 Fabricators . | . . . . Repair Stations 4 | . 2 2 . Recycling Units 2 | . . 2 . Scanalyzers 23 | . . 7 16 Garrison Access . | . . . . Terminal Hacks 34 | . 9 25 . Record 6 | . 1 5 . Robot Analysis 1 | . . 1 . Prototype ID Bank 7 | . 2 5 . Emergency Access Points 5 | . 2 3 . Alert Level 1 | . . 1 . Unreport Threat 1 | . . 1 . Locate Traps 3 | . 1 2 . Reprogram Traps 1 | . 1 . . Maintenance Status 1 | . . 1 . Security Status 1 | . . 1 . Registered Prototypes 1 | . . 1 . Zone Layout 6 | . 2 4 . Fabricator Hacks . | . . . . Repair Station Hacks 4 | . 2 2 . Scan Component 2 | . 1 1 . Repair 2 | . 1 1 . Recycling Unit Hacks 1 | . . 1 . Report Inventory 1 | . . 1 . Scanalyzer 21 | . . 6 15 Insert Component 10 | . . 3 7 Analyze 11 | . . 3 8 Garrison Access Hacks . | . . . . Unauthorized Hacks 24 | . 8 14 2 Terminals 21 | . 8 12 1 Assimilate 1 | . . 1 . Botnet 20 | . 8 11 1 Fabricators . | . . . . Repair Stations . | . . . . Recycling Units 1 | . . 1 . Recyclers 1 | . . 1 . Scanalyzers 2 | . . 1 1 Extract 2 | . . 1 1 Garrison Access . | . . . . Data Cores Recovered 1 | . . 1 . Used . | . . . . Hacking Detections 14 | . 5 7 2 Full Trace Events . | . . . . Feedback Events . | . . . . Feedback Blocked . | . . . . Robot Schematics Acquired . | . . . . Robots Built . | . . . . Authchips . | . . . . Time . | . . . . Total Robot Build Rating . | . . . . Part Schematics Acquired 12 | . . 4 8 Parts Built . | . . . . Authchips . | . . . . Time . | . . . . Total Part Build Rating . | . . . . Parts Repaired 2 | . 1 1 . Time 64 | . 26 38 . Parts Recycled . | . . . . Recycled Matter . | . . . . Retrieved Matter . | . . . . Retrieved Components . | . . . . Parts Scanalyzed 10 | . . 3 7 Part Schematics Acquired 10 | . . 3 7 Parts Damaged . | . . . . Bothacking | -11 -10 -9 -8 ------------ Run | Jun Mat Mat Mat Used RIF Installer . | . . . . Robots Hacked . | . . . . Non-combat . | . . . . Combat . | . . . . Robot Hacks Applied . | . . . . Relay Couplers Released . | . . . . Fabnet Peak Effective % . | . . . . Robots Rewired . | . . . . Allies Hacked . | . . . . Hacks Repelled . | . . . . Allies | -11 -10 -9 -8 -------- Run | Jun Mat Mat Mat Total Allies . | . . . . Largest Group . | . . . . Highest-Rated Group . | . . . . Highest-Rated Ally . | . . . . Total Orders . | . . . . Ally Attacks . | . . . . Total Damage . | . . . . Kills . | . . . . Allies Corrupted . | . . . . Allies Melted . | . . . . Intel | -11 -10 -9 -8 ------- Run | Jun Mat Mat Mat Robot Analysis Total 1 | . . 1 . Derelict Logs Recovered . | . . . . Drone Launches . | . . . . Drone Recoveries . | . . . . Exploration | -11 -10 -9 -8 ------------- Run | Jun Mat Mat Mat Turns Passed 3338 | 47 854 2160 277 Spaces Moved 2429 | 45 830 1423 131 Core 4 | 4 . . . Treads . | . . . . Legs 1370 | . . 1239 131 Wheels 1055 | 41 830 184 . Hover . | . . . . Flight . | . . . . Fastest Speed 50 | 50 80 90 120 Average Speed 104 | 77 83 116 120 Slowest Speed 190 | 80 90 190 120 Overloaded Moves . | . . . . Propulsion Burnouts . | . . . . Robots Hopped . | . . . . Cave-ins Triggered . | . . . . Exploration Rate (%) 52 | 3 96 98 12 Regions Visited 3 Branch Regions . Pre-discovered Areas . | . . . . Known Exits Taken 2 | . 1 1 . Unknown Exits Taken 1 | 1 . . . Scrap Searched . | . . . . Spaces Dug . | . . . . Terrain Destroyed . | . . . . Melee . | . . . . Projectile . | . . . . AOE . | . . . . Terrain Rammed . | . . . . Walls Destroyed . | . . . . Machines Disabled . | . . . . Actions | -11 -10 -9 -8 --------- Run | Jun Mat Mat Mat Total 2953 | 54 932 1744 223 Wait 272 | . 52 162 58 Move 2426 | 44 829 1422 131 Hop . | . . . . Pick Up 20 | 3 3 13 1 Fast Attach 16 | 4 3 8 1 Attach 11 | 2 . 2 7 Detach 10 | . 1 3 6 Swap 23 | 1 6 14 2 Drop 27 | . 8 19 . Fire 140 | . 28 95 17 Melee . | . . . . Ram 2 | . 2 . . Kick 6 | . . 6 . Crush . | . . . . Escape Stasis . | . . . . Rewire . | . . . . Trap . | . . . . Miscellaneous . | . . . . Route ------- -11/Junkyard -10/Materials (discovered 5 exits: *Mat x3 / *Min x2) -9/Materials (discovered 4 exits: *Mat x3 / *Min) -8/Materials History --------- Turn | Location | Event 23 | -11/Junkyard | Discovered new exit (range 16) 48 | -11/Junkyard | Entered Materials 89 | -10/Materials | Discovered new exit (range 11) 169 | -10/Materials | Discovered new exit (range 16) 323 | -10/Materials | Build established: Mutant 350 | -10/Materials | Discovered new exit (range 11) 507 | -10/Materials | Discovered new exit (range 15) 785 | -10/Materials | Repaired Wheel 854 | -10/Materials | Discovered new exit (range 13) 876 | -10/Materials | Identified exit to Mines 901 | -10/Materials | Identified exit to Materials 902 | -10/Materials | Entered another Materials area 902 | -9/Materials | Evolved 2 slots: Propulsion x1, Utility x1 1153 | -9/Materials | Discovered new exit (range 15) 1435 | -9/Materials | Discovered new exit (range 16) 1553 | -9/Materials | Discovered new exit (range 3) 1555 | -9/Materials | Identified exit to Materials 2035 | -9/Materials | Build established: Hacker-Mutant 2439 | -9/Materials | Discovered exit to Materials (range 12) 2614 | -9/Materials | Identified exit to Mines 2776 | -9/Materials | Repaired Carbon-fiber Leg 2956 | -9/Materials | Core integrity fell below 50% 3062 | -9/Materials | Entered another Materials area 3062 | -8/Materials | Evolved 2 slots: Power x1, Utility x1 3339 | -8/Materials | Self-destructed Last Messages --------------- 03290_ K-01 Serf collects debris. 03301_ Slug penetrates Wall. 03302_ K-01 Serf collects debris. 03304_ Slug penetrates Wall. 03306_ K-01 Serf collects debris. 03310_ Imp. Ion Engine destroyed. 03319_ K-01 Serf collects debris. 03320_ Slug penetrates Wall. 03321_ Sensor Array destroyed. 03326_ G-47 Trooper destroyed. 03328_ Adv. Beam Cannon severed. 03328_ Penetrated by Slug. 03328_ Imp. Aluminum Leg destroyed. 03331_ Penetrated by Slug. 03336_ Slug penetrates Wall. 03336_ Carbon-fiber Leg destroyed. 03338_ Power failure, Nuclear Core shutdown. 03338_ Adv. Beam Cannon severed. 03339_ Penetrated by Slug. [Achievement: This Is Interesting...] Map ----- +----------------------------------------------------+ | ?????????????????????????????????????????????????? | | ?????????????????????????????????????????????????? | | ?????????????????????????????????????????????????? | | ?????????????????????????????????????????????????? | | ?????????????????????????????????????????????????? | | ?????????????????????????????????????????????????? | | ?????????????????????????????????????????????????? | | ?????????????????????????????????????????????????? | | ?????????????????????????????????????????????????? | | ?????????????????????????????????????????????????? | | ?????????????????????????????????????????????????? | | ???????????????????????????????? ????????????????? | | ???????????????????????????????? ????????????????? | | ???????????????????????????????? ????????????????? | | ?????????????????????????????### ###?????????????? | | ?????????????????????????????# ! #?????????????? | | ?????????????????????????????# #?????????????? | | ?????????????????????????????#] +?????????????? | | ?????????????????????????????# #?????????????? | | ??????????????????????????###? ??????????????? | | ??????????????????????##### ### ##############?? | | ??????????????????????# # # #?? | | ??????????????????????# ! # + """ """ #?? | | ??????????????????????# !! [ # # """ """ #?? | | ??????????????????????# lg% # # """ """ #?? | | ??????????????????????# ]@ g=*# + #?? | | ??????????????????????# !h; ##############?? | | ??????????????????????# !%# #??????######### | | ??????????????????????# "" # ######## | | ??????????????????????# """ # =!## # """ | | ??????????????????????# S" #[!%% # """ | | ??????????????????????# # =[! T + """ | | ??????????????????????######### # | | ??????????????????????????????###### # [ """ | | ???????????????????????????########## ## """ | | ???????????????????????????# = # ## """ | | ???????????????????????????# # ## | | ???????????????????????????# """ # ########## | | ???????????????????????????# """"" # # #?? | | ???????????????????????????? """"" # #! #?? | | ???????????????????????????# """"" + # #?? | | ???????????????????????????# """ # + """ #?? | | ???????????????????????????# # # """ #?? | | ???????????????????????????# # # """ #?? | | ???????????????????????????#####################?? | | ?????????????????????????????????????????????????? | | ?????????????????????????????????????????????????? | | ?????????????????????????????????????????????????? | | ?????????????????????????????????????????????????? | | ?????????????????????????????????????????????????? | +----------------------------------------------------+ Best States ------------- Heat Dissipation 31 Energy Generation 21 Energy Capacity 405 Matter Stores 300 Matter Capacity 300 Sight Range 18 Robot Scan Range 14 Terrain Scan Density 10 Resistance: KI 20 Resistance: TH 20 Resistance: EX 20 Resistance: EM 20 Resistance: I 20 Resistance: S 20 Resistance: P 20 Evasion (%) 55 Offensive Hacking 20 Item Schematics ----------------- Autogun | -9/Materials | Scanalyzed Lgt. Ion Engine | -9/Materials | Scanalyzed Salvage Targeting Computer | -9/Materials | Scanalyzed Hvy. EM Pulse Gun | -9/Materials | Extracted Adv. Beam Cannon | -8/Materials | Scanalyzed Imp. Aluminum Leg | -8/Materials | Scanalyzed Imp. Assault Rifle | -8/Materials | Scanalyzed Sensor Array | -8/Materials | Scanalyzed Imp. Ion Engine | -8/Materials | Scanalyzed Nuclear Core | -8/Materials | Scanalyzed Carbon-fiber Leg | -8/Materials | Scanalyzed Lgt. Nuclear Core | -8/Materials | Extracted Robot Schematics ------------------ None Fabricated ------------ Nothing Alien Tech Used ----------------- None Achievements -------------- This Is Interesting... Challenges ------------ None Game ------ Seed DiametricSapperDiverter Manual? 0 Play Time 00:38:44 Cumulative 28.8 hours Start 2023.04.30 @ 13:52:21 End 2023.04.30 @ 15:07:08 Sessions 1 Manual Loads 0 Difficulty Adventurer Special Mode None Game No. 25 Rogue 13 Adventurer 12 Explorer 0 Win Type - Total 0 Types 0/0/0/0/0/0/0/0/0 Lore% 25 Gallery% 27 Achievement% 24 Wizard Run 0 Options --------- ASCII 0 Keyboard 1 Movement Numpad Keybinds 0 Fullscreen 2 Font 18/SmallcapsGlow Map View 76x50 Tactical HUD 1 Map Filters NONE Filters NONE Steam 1 RUN: 8b859eb4-dcd6-4340-8dc1-4d2733217c40